Cogmind - Beta 11.1 *** ADVENTURER MODE // 2022.07.18 @ 10:13:38 Player: thefarm Result: Self-destructed Performance ------------- Evolutions (1) 500 Regions Visited (2) 400 Robots Destroyed (33) 165 Value Destroyed (887) 887 Prototype IDs (0) 0 Alien Tech Used (0) 0 Bonus (11) 11 TOTAL SCORE: 1963 Bonus ------- High Alert Combat Kills 11 Cogmind --------- Core Integrity 229/400 Matter 221/300 Energy 100/100 System Corruption 0% Temperature Cool (0) Movement Flying (1720) Ox21 Location -9/Materials Parts ------- > --- POWER (2) -------- (None) > --- PROPULSION (2) --- Flight Unit > --- UTILITY (3) ------ Huge Storage Unit Structural Scanner Propulsion Shielding > --- WEAPON (2) ------- Heavy Assault Rifle > --- INVENTORY (25) --- Aluminum Leg Tractor Beam Field Recycling Unit (0) Mining Laser Peak State ------------ > --- POWER ------------ Ion Engine Light Ion Engine > --- PROPULSION ------- Improved Aluminum Leg Improved Aluminum Leg > --- UTILITY ---------- Small Storage Unit Propulsion Shielding Hardened Light Armor Plating > --- WEAPON ----------- Small Laser Heavy Assault Rifle > --- INVENTORY -------- Structural Scanner Tractor Beam Field Recycling Unit Grenade Launcher Datajack Mining Laser [Rating: 13] Favorites ----------- Power Light Ion Engine Engine Light Ion Engine Propulsion Improved Aluminum Leg Leg Improved Aluminum Leg Flight Unit Flight Unit Utility Small Storage Unit Device Structural Scanner Storage Small Storage Unit Protection Hardened Light Armor Plating Weapon Heavy Assault Rifle Energy Gun Medium Laser Ballistic Gun Heavy Assault Rifle Build | -11 -10 -9 ------- Run | Scr Mat Mat Slots Evolved 2 | . . 2 Power 1 | . . 1 Propulsion . | . . . Utility 1 | . . 1 Weapon . | . . . Parts Attached 18 | 6 6 6 Power 3 | 1 1 1 Engine 3 | 1 1 1 Core . | . . . Reactor . | . . . Propulsion 5 | 2 2 1 Treads . | . . . Leg 4 | 2 2 . Wheel . | . . . Hover . | . . . Flight 1 | . . 1 Utility 5 | 1 1 3 Device 1 | . . 1 Storage 2 | 1 . 1 Processor . | . . . Hackware . | . . . Protection 2 | . 1 1 Artifact . | . . . Weapon 5 | 2 2 1 Energy Gun 2 | 1 1 . Energy Cannon . | . . . Ballistic Gun 3 | 1 1 1 Ballistic Cannon . | . . . Launcher . | . . . Special Weapon . | . . . Impact Weapon . | . . . Slashing Weapon . | . . . Piercing Weapon . | . . . Special Melee Weapon . | . . . Unidentified Prototypes . | . . . Parts Lost 7 | . 2 5 Power 3 | . 1 2 Propulsion 1 | . 1 . Utility 1 | . . 1 Weapon 2 | . . 2 Highest Loss Streak 2 | . 2 2 To Critical Strikes . | . . . Average Slot Usage (%) 91 | . 97 82 Engine 13 | . 13 13 Leg 24 | . 27 18 Device 1 | . . 3 Storage 12 | . 14 10 Protection 13 | . 12 14 Energy Gun 12 | . 14 8 Ballistic Gun 12 | . 14 10 Naked Turns . | . . . Heaviest Build 88 | 11 20 88 Greatest Support 26 | 20 26 26 Greatest Overweight (x) 29 | 3 1 29 Average Overweight (x) . | . . . Largest Inventory Capacity 25 | 8 8 25 Average Capacity 8 | 7 8 10 Most Carried 8 | 4 8 8 Average Carried 6 | 2 6 6 Final Capacity 25 | 8 8 25 Final Carried 7 | 4 7 4 Class Distribution -------------------- 100% | Mutant Dominant Class ---------------- Mutant | -10/Materials Mutant | -9/Materials Resources | -11 -10 -9 ----------- Run | Scr Mat Mat Matter Collected 510 | 202 161 147 Remotely . | . . . Salvage Created 1083 | . 486 597 Parts 82 | . 30 52 Haulers Intercepted . | . . . Recyclers Shooed . | . . . Parts Field Recycled . | . . . Retrieved Matter . | . . . Parts Self-Destructed . | . . . Prevented . | . . . Kills | -11 -10 -9 ------- Run | Scr Mat Mat Combat Hostiles Destroyed 26 | . 10 16 Guns 26 | . 10 16 Classes Destroyed 7 | . 2 5 Worker 1 | . . 1 Tunneler 1 | . . 1 Operator 1 | . . 1 Watcher 4 | . 3 1 Swarmer 7 | . . 7 Grunt 15 | . 10 5 Sentry 4 | . . 4 Best Kill Streak 6 | . 4 6 Combat Bots Only 5 | . 4 5 Max Kills in Single Turn 2 | . 2 2 Gunslinging 1 | . 1 1 Exploded . | . . . Melee . | . . . Uniques/NPCs Destroyed . | . . . Combat | -11 -10 -9 -------- Run | Scr Mat Mat Damage Taken 1416 | . 603 813 Core 292 | . 121 171 Absorbed by Shields . | . . . Redirected to Shielding 44 | . . 44 Core Remaining (%) 75 | 100 51 . Volleys Fired 101 | . 42 59 Largest 2 | . 2 2 Hottest 73 | . 73 63 Shots Fired 170 | . 79 91 Gun 170 | . 79 91 Cannon . | . . . Launcher . | . . . Special . | . . . Kinetic 99 | . 42 57 Thermal 71 | . 37 34 Explosive . | . . . Electromagnetic . | . . . Robot Hit Streak 30 | . 13 30 Robot Miss Streak 5 | . 5 1 Penetration Max . | . . . Secondary Targets 6 | . 3 3 Max Gunslinging Chain 1 | . 1 1 Shots Hit Robots 129 | . 63 66 Core Hits 57 | . 25 32 Critical Kills 2 | . 1 1 Critical Parts Destroyed . | . . . Critical Strikes 4 | . 3 1 Burn 2 | . 2 . Destroy 2 | . 1 1 Melee Attacks . | . . . Impact . | . . . Slashing . | . . . Piercing . | . . . Sneak Attacks . | . . . Combat Hostiles . | . . . Follow-up Attacks . | . . . Damage Inflicted 1695 | . 790 905 Guns 1645 | . 757 888 Cannons . | . . . Explosions . | . . . Melee . | . . . Ramming 50 | . 33 17 Kinetic 960 | . 403 557 Thermal 685 | . 354 331 Explosive . | . . . Electromagnetic . | . . . Impact . | . . . Slashing . | . . . Piercing . | . . . Highest Corruption . | . . . Average Corruption . | . . . Corruption Purged . | . . . Corruption Blocked . | . . . Overload Shots . | . . . Overflow Damage . | . . . Projectiles . | . . . Explosions . | . . . Melee . | . . . Knockbacks 1 | . 1 . Impact 1 | . 1 . Kinetic . | . . . Secondary . | . . . Self-Inflicted Damage . | . . . Shots . | . . . Rammed 1 | . . 1 Targets Rammed 8 | . 5 3 Kicked 7 | . 5 2 Crushed . | . . . Highest Temperature 390 | . 390 167 Average Temperature 114 | . 151 61 Received Heat Transfer 603 | . 381 222 Effects 3 | . 3 . Interference 2 | . 2 . Damage (minor) 1 | . 1 . Siege Activations . | . . . Robots Corrupted . | . . . Combat Hostiles . | . . . Parts Fried . | . . . Impact Corruptions . | . . . Robots Melted . | . . . Combat Hostiles . | . . . Parts Melted 3 | . 3 . Heat Transferred 1934 | . 1184 750 Parts Sabotaged . | . . . Parts Stolen . | . . . Parts Stripped . | . . . Power Chain Reactions . | . . . Missiles Intercepted . | . . . Alert | -11 -10 -9 ------- Run | Scr Mat Mat Peak Influence 401 | . 120 401 Initial 28 | . . 28 Average 113 | . 66 218 Maximum Alert Level 2 | . . 2 Low Security (%) 76 | 100 100 31 Level 1 22 | . . 65 Level 2 1 | . . 3 Level 3 . | . . . Level 4 . | . . . Level 5 . | . . . High Security . | . . . Max Security . | . . . Squads Dispatched 3 | . 2 1 Investigation 2 | . 2 . Extermination . | . . . Reinforcement 1 | . . 1 Assault . | . . . Garrison . | . . . Intercept . | . . . Searches Triggered . | . . . Construction Impeded . | . . . Haulers Reinforced . | . . . Active Scanning Responses . | . . . Cargo Convoy Interrupts . | . . . Stealth | -11 -10 -9 --------- Run | Scr Mat Mat Distress Signals 3 | . 1 2 Communications Jammed . | . . . Distress Signals . | . . . Times Spotted 38 | . 16 22 Peak Tracking Total 5 | . 5 5 Tactical Retreats 1 | . . 1 Traps | -11 -10 -9 ------- Run | Scr Mat Mat Traps Triggered 3 | . 3 . Indirectly . | . . . Trap Hack Attempts . | . . . Triggered . | . . . Disarmed . | . . . Reprogrammed . | . . . Reused . | . . . Traps Extracted . | . . . Installed . | . . . Triggered . | . . . Machines | -11 -10 -9 ---------- Run | Scr Mat Mat Machines Disabled . | . . . Max in Single Turn . | . . . Machines Sabotaged . | . . . Garrisons Compromised . | . . . Overloaded Fab Kills . | . . . Hacking | -11 -10 -9 --------- Run | Scr Mat Mat Machines Accessed 10 | . 6 4 Terminals 7 | . 4 3 Fabricators . | . . . Repair Stations . | . . . Recycling Units 2 | . 2 . Scanalyzers 1 | . . 1 Garrison Access . | . . . Total Hacks 39 | . 13 26 Successful 37 | . 11 26 Failed 2 | . 2 . Catastrophic . | . . . Database Lockouts . | . . . Manual . | . . . Terminals 21 | . 9 12 Fabricators . | . . . Repair Stations . | . . . Recycling Units 4 | . 4 . Scanalyzers 14 | . . 14 Garrison Access . | . . . Terminal Hacks 20 | . 8 12 Record 15 | . 6 9 Alert Level 4 | . 2 2 Maintenance Status 1 | . . 1 Fabricator Hacks . | . . . Repair Station Hacks . | . . . Recycling Unit Hacks 3 | . 3 . Process 2 | . 2 . Report Inventory 1 | . 1 . Scanalyzer 14 | . . 14 Insert Component 7 | . . 7 Analyze 7 | . . 7 Garrison Access Hacks . | . . . Unauthorized Hacks . | . . . Terminals . | . . . Fabricators . | . . . Repair Stations . | . . . Recycling Units . | . . . Scanalyzers . | . . . Garrison Access . | . . . Data Cores Recovered 1 | . . 1 Used . | . . . Hacking Detections 4 | . 3 1 Full Trace Events 1 | . 1 . Feedback Events . | . . . Feedback Blocked . | . . . Robot Schematics Acquired . | . . . Robots Built . | . . . Authchips . | . . . Time . | . . . Total Robot Build Rating . | . . . Part Schematics Acquired 6 | . . 6 Parts Built . | . . . Authchips . | . . . Time . | . . . Total Part Build Rating . | . . . Parts Repaired . | . . . Time . | . . . Parts Recycled . | . . . Recycled Matter 119 | . 119 . Retrieved Matter . | . . . Retrieved Components . | . . . Parts Scanalyzed 6 | . . 6 Part Schematics Acquired 6 | . . 6 Parts Damaged . | . . . Bothacking | -11 -10 -9 ------------ Run | Scr Mat Mat Used RIF Installer . | . . . Robots Hacked . | . . . Non-combat . | . . . Combat . | . . . Robot Hacks Applied . | . . . Relay Couplers Released . | . . . Fabnet Peak Effective % . | . . . Robots Rewired . | . . . Allies Hacked . | . . . Hacks Repelled . | . . . Allies | -11 -10 -9 -------- Run | Scr Mat Mat Total Allies . | . . . Largest Group . | . . . Highest-Rated Group . | . . . Highest-Rated Ally . | . . . Total Orders . | . . . Ally Attacks . | . . . Total Damage . | . . . Kills . | . . . Allies Corrupted . | . . . Allies Melted . | . . . Intel | -11 -10 -9 ------- Run | Scr Mat Mat Robot Analysis Total . | . . . Derelict Logs Recovered . | . . . Drone Launches . | . . . Drone Recoveries . | . . . Exploration | -11 -10 -9 ------------- Run | Scr Mat Mat Turns Passed 1838 | 118 1097 623 Spaces Moved 1192 | 102 758 332 Core 52 | 50 . 2 Treads . | . . . Legs 1139 | 52 758 329 Wheels . | . . . Hover . | . . . Flight 1 | . . 1 Fastest Speed 50 | 50 120 120 Average Speed 122 | 100 120 132 Slowest Speed 1720 | 200 190 1720 Overloaded Moves . | . . . Propulsion Burnouts . | . . . Robots Hopped . | . . . Cave-ins Triggered . | . . . Exploration Rate (%) 46 | 5 97 37 Regions Visited 2 Branch Regions . Pre-discovered Areas . | . . . Known Exits Taken . | . . . Unknown Exits Taken 2 | 1 1 . Scrap Searched . | . . . Spaces Dug . | . . . Terrain Destroyed . | . . . Melee . | . . . Projectile . | . . . AOE . | . . . Terrain Rammed . | . . . Walls Destroyed . | . . . Machines Disabled . | . . . Actions | -11 -10 -9 --------- Run | Scr Mat Mat Total 1395 | 117 869 409 Wait 43 | . 43 . Move 1190 | 101 757 332 Hop . | . . . Pick Up 27 | 10 11 6 Fast Attach . | . . . Attach 17 | 6 5 6 Detach . | . . . Swap 1 | . 1 . Drop 8 | . 5 3 Fire 101 | . 42 59 Melee . | . . . Ram 1 | . . 1 Kick 7 | . 5 2 Crush . | . . . Escape Stasis . | . . . Rewire . | . . . Trap . | . . . Miscellaneous . | . . . Route ------- -11/Scrapyard -10/Materials (discovered 5 exits: *Mat x3 / [*Min x2]) -9/Materials (discovered 1 exit: [*Sto]) History --------- Turn | Location | Event 6 | -11/Scrapyard | Discovered new exit (range 16) 119 | -11/Scrapyard | Entered Materials 305 | -10/Materials | Build established: Mutant 342 | -10/Materials | Discovered new exit (range 14) 534 | -10/Materials | Discovered new exit (range 6) 608 | -10/Materials | Discovered new exit (range 15) 956 | -10/Materials | Discovered new exit (range 16) 1081 | -10/Materials | Discovered new exit (range 12) 1216 | -10/Materials | Entered another Materials area 1216 | -9/Materials | Evolved 2 slots: Power x1, Utility x1 1527 | -9/Materials | Discovered new exit (range 11) 1839 | -9/Materials | Self-destructed Last Messages --------------- S-10 Pest destroyed. Dropped Sml. Storage Unit. Dropped Imp. Aluminum Leg. R-06 Scavenger collects Datajack. R-06 Scavenger collects Flight Unit. W-16 Scout distress signal alerts nearby ally. R-06 Scavenger collects Flight Unit. W-16 Scout destroyed. R-06 Scavenger collects Lgt. Ion Engine. Slammed into R-06 Scavenger. Lgt. Ion Engine destroyed. S-10 Pest destroyed. R-06 Scavenger collects Lgt. Ion Engine. R-06 Scavenger collects Imp. Aluminum Leg. Acquired Flight Unit. R-06 Scavenger collects Aluminum Leg. R-06 Scavenger collects Imp. Aluminum Leg. K-01 Serf collects debris. K-01 Serf destroyed. K-01 Serf collects debris. Map ----- +----------------------------------------------------+ | ????????????????????????######### ??????? # | | ???????????????????????? # ??????? # ![ | | ??????????????????????????? + ??????? # [[ | | ??????????????????????????? # ??????? # | | ???????????????????????????## # ??????? # | | ???????????????????????????## # ??????? # | | ???????????????############## ################ | | ???????????????############## ############## | | ?????????????? ^ = | | ?????????????? ^ % | | ?????????????? ^ = | | ????????????????##+#### ######+############### | | ????????????????## ## ### ############# | | ?????????????????????## ### """ ##???????#### | | ?????????????????????## ### """ ##??????????? | | ?????????????????????##* + """ ##??????????? | | ?????????????????????##=### ##??????????? | | ?????????????????????##%### """ ##??????????? | | ?????????????????????##!### """ ##??????????? | | ?????????????????????##=### """ ##??????????? | | ?????????????????????##%### ##??????????? | | ?????????????????????##!#########/###??????????? | | ?????????????????????##= !!###### ###??????????? | | ??????????????#########%s !##??? ##???????????? | | ???????###????######### !] !##??? ##???????????? | | ???????## ! + @ !##?????????????????? | | ???????## #######%k !##?????????????????? | | ???????## ????? # # !!###?????????????????? | | ????????????????????? + ######?????????????????? | | ????????????????????? # #####??????????????????? | | ????????????????????? # ?????????????????????? | | ????????????????????? ####?????????????????????? | | ????????????????????? ####?????????????????????? | | ???????????????????????????????????????????????? | | ???????????????????????????????????????????????? | | ???????????????????????????????????????????????? | | ???????????????????????????????????????????????? | | ???????????????????????????????????????????????? | | ???????????????????????????????????????????????? | | ???????????????????????????????????????????????? | | ???????????????????????????????????????????????? | | ???????????????????????????????????????????????? | | ???????????????????????????????????????????????? | | ???????????????????????????????????????????????? | | ???????????????????????????????????????????????? | | ???????????????????????????????????????????????? | | ???????????????????????????????????????????????? | | ???????????????????????????????????????????????? | | ???????????????????????????????????????????????? | | ???????????????????????????????????????????????? | +----------------------------------------------------+ Best States ------------- Heat Dissipation 28 Energy Generation 15 Energy Capacity 275 Matter Stores 300 Matter Capacity 300 Sight Range 16 Terrain Scan Density 10 Armor Coverage 150 Resistance: KI 20 Resistance: TH 20 Resistance: EX 20 Resistance: EM 20 Resistance: I 20 Resistance: S 20 Resistance: P 20 Propulsion Shielding 33 Evasion (%) 55 Offensive Hacking 10 Item Schematics ----------------- Grenade Launcher | -9/Materials | Scanalyzed Mining Laser | -9/Materials | Scanalyzed Structural Scanner | -9/Materials | Scanalyzed Tractor Beam | -9/Materials | Scanalyzed Field Recycling Unit | -9/Materials | Scanalyzed Datajack | -9/Materials | Scanalyzed Robot Schematics ------------------ None Fabricated ------------ Nothing Alien Tech Used ----------------- None Achievements -------------- Novice Programmer Challenges ------------ None Game ------ Seed ImprovedArmoredSteel Manual? 0 Play Time 00:25:24 Cumulative 1.9 hours Start 2022.07.18 @ 09:44:48 End 2022.07.18 @ 10:13:38 Sessions 1 Manual Loads 0 Difficulty Adventurer Special Mode None Game No. 6 Rogue 0 Adventurer 6 Explorer 0 Win Type - Total 0 Types 0/0/0/0/0/0/0/0/0 Lore% 2 Gallery% 4 Achievement% 4 Wizard Run 0 Options --------- ASCII 0 Keyboard 0 Movement Arrows Keybinds 0 Fullscreen 1 Font 18/SmallcapsGlow Map View 76x50 Tactical HUD 0 Map Filters NONE Filters NONE Steam 1 RUN: ddf31fac-942b-469a-af4c-df220d9fb041